[Event "Swietokrzyskie GM Chess-ch 2022"]
[Site "Zagnansk"]
[Date "2022.05.04"]
[Round "7.2"]
[White "Samunenkov, FM Ihor"]
[Black "Fus, FM Jakub"]
[Result "0-1"]
[ECO "A45"]
[WhiteElo "2372"]
[BlackElo "2377"]
[Annotator "TA"]
[PlyCount "190"]
[EventDate "2022.04.29"]
[EventCountry "POL"]
[SourceTitle "playchess.com"]
[Source "ChessBase"]
[SourceQuality "1"]
[TimeControl "40/5400+30:1800+30"]

{[%evp 38,190,0,0,0,-8,-6,-10,0,0,0,-8,18,24,35,8,8,-7,36,0,0,-52,-39,-45,-43,-47,-31,-39,-16,-22,0,-304,-308,-311,-271,-284,-306,-300,-293,-263,-266,-342,-41,-227,-42,-64,0,-61,0,-35,0,0,0,0,0,-35,0,0,0,0,0,0,17,-344,-27,-31,0,-20,-15,-70,-74,-105,-105,-105,-97,-1053,-1025,-924,-567,-1100,-1100,-1070,0,0,0,0,0,-1000,-29947,-618,-24,-29970,-29971,-29971,-29969,-29969,-29970,-29970,-29971,-29971,-29972,-29971,-29973,-29973,-29973,-5081,-70,-61,-64,-64,-64,-83,-97,-103,-48,-29984,-29965,-29964,-29966,-1051,-200,-51,-40,-85,-40,-40,-40,-29979,-29980,-29977,-29979,-29979,-29980,-29980,-29981,-29981,-29981,-29989,-29990,-29990,-29991,-29989,-29984,-29989,-29990,-29992,-29993,-29993,-29994,-29994,-29993,-29994,-29991,-29991,-29992]} 1. d4 {[%emt 0:00:03]} Nf6 {[%emt 0:00:41]} 2. g3 {[%emt 0:00:13]} d5 {[%emt 0:00:49]} 3. Nf3 {[%emt 0:00:10]} Bf5 {[%emt 0:00:35]} 4. c4 {[%emt 0:00:24]} e6 {[%emt 0:00:26]} 5. Nc3 {[%emt 0:00:12]} h6 {[%emt 0:00:09]} 6. Qb3 {[%emt 0:00:27]} Nc6 {[%emt 0:01:04]} 7. Bd2 {[%emt 0:02:17]} Rb8 {[%emt 0:02:08]} 8. cxd5 {[%emt 0:03:10]} exd5 {[%emt 0:00:35]} 9. Bg2 {[%emt 0:03:05]} Be7 {[%emt 0:02:10]} 10. Rc1 {[%emt 0:05:13]} O-O {[%emt 0:01:35]} 11. O-O {[%emt 0:02:05]} Be4 {[%emt 0:19:52]} 12. Qa4 {[%emt 0:15:05]} a6 {[%emt 0:07:39]} 13. Bf4 {[%emt 0:08:25]} Bd6 {[%emt 0:03:47]} 14. Nxe4 {[%emt 0:05:12]} Nxe4 {[%emt 0:07:15]} 15. Ne5 {[%emt 0:03:22]} Ne7 {[%emt 0:07:08]} 16. Bxe4 {[%emt 0:06:06]} dxe4 {[%emt 0:00:19]} 17. Qc2 {[%emt 0:00:22]} f5 {[%emt 0:05:54]} 18. Qb3+ {[%emt 0:04:13]} Kh7 {[%emt 0:00:22]} 19. Nf7 {[%emt 0:00:37]} Qd7 {[%emt 0:01:55]} 20. Nxd6 {[%emt 0:00:33]} cxd6 {[%emt 0:00:06]} 21. Qb6 {[%emt 0:01:03]} Rf6 {[%emt 0:10:18]} 22. Qa5 {[%emt 0:12:04]} Nc6 {[%emt 0:04:23]} 23. Qb6 {[%emt 0:04:30]} Ne7 {[%emt 0:05:04]} 24. Qa5 {[%emt 0:01:50]} b6 {[%emt 0:07:27]} 25. Qxa6 {[%emt 0:06:04]} Nd5 {[%emt 0:00:06]} 26. Qc4 {[%emt 0:03:01]} Qe6 {[%emt 0:00:17]} 27. Bd2 {[%emt 0:02:40]} Rbf8 {[%emt 0:04:03]} 28. f3 {[%emt 0:03:17]} e3 {[%emt 0:00:52]} 29. Bc3 {[%emt 0:02:43]} (29. Be1 $11) 29... h5 $15 {[%emt 0:01:25]} 30. Kh1 {[%emt 0:01:56]} g5 {[%emt 0:01:04]} 31. Rg1 {[%emt 0:01:22]} g4 {[%emt 0:00:23]} 32. Rcf1 {[%emt 0:00:48]} Kg7 {[%emt 0:00:41]} 33. Qd3 {[%emt 0:01:04]} Rg6 {[%emt 0:00:47]} 34. h3 $2 {[%emt 0:02:20][%mdl 8192]} (34. a4 $11 {and White is okay.}) 34... gxh3 $19 {[%emt 0:02:29]} 35. Kh2 {[%emt 0:00:26]} Kh6 {[%emt 0:00:22]} 36. f4 {[%emt 0:01:16]} (36. Kxh3 f4+ 37. g4 hxg4+ 38. Rxg4 Rxg4 39. fxg4 Kg7) 36... Rfg8 {[%emt 0:01:29]} 37. Rf3 {[%emt 0:00:46]} h4 {[%emt 0:00:53]} 38. Be1 {[%emt 0:00:12]} Rg4 {[%emt 0:00:26]} 39. a4 {[%emt 0:00:51] [#]} Qg6 $2 {[%emt 0:01:25]} (39... Rxf4 $3 $19 {[%mdl 512]} 40. b3 (40. gxf4 $2 Rxg1 41. Bxh4 Nxf4 $19) (40. Rxf4 $2 Nxf4 41. Qb5 Nd5 $19) 40... Rxf3 41. exf3 hxg3+ 42. Rxg3 Nf4) 40. b4 $2 {[%emt 0:00:00]} (40. Qb3 $15 Nf6 41. Rxe3) 40... Rc8 $2 {[%emt 0:00:00]} (40... Kh7 $1 $19 {[%cal Od5f4] White must now prevent ...Nxf4!} 41. a5 Nxb4 $1 {[%mdl 512]}) 41. Qb1 $1 $15 {[%emt 0:22:27]} Rg8 {[%emt 0:18:23]} (41... Kh7 $15 42. a5 Rg8) 42. Qb3 {[%emt 0:03:54]} (42. Qd3 $1 $11) 42... Nf6 {[%emt 0:05:41]} (42... Qe6 $1 $15) 43. Qxe3 {[%emt 0:02:30]} Ne4 {[%emt 0:00:11]} (43... Qh5 $5 {[%cal Rg4g3]} 44. Kh1 Ne4 $17) 44. a5 {[%emt 0:01:12]} bxa5 {[%emt 0:00:05]} (44... hxg3+ 45. Bxg3 b5 46. a6) 45. bxa5 {[%emt 0:00:04]} d5 {[%emt 0:00:03]} (45... hxg3+ 46. Bxg3 Re8 47. Qa3) 46. Qd3 {[%emt 0:01:22]} Rc8 {[%emt 0:00:16]} (46... hxg3+ 47. Bxg3 Kh7 48. a6) 47. Qb1 {[%emt 0:01:05]} Kh5 {[%emt 0:01:59]} 48. Qd1 {[%emt 0:01:55]} Qd6 {[%emt 0:01:10]} 49. Qd3 {[%emt 0:00:27]} Rc1 {[%emt 0:01:14]} 50. Qe3 $2 {[%emt 0:00:29][%mdl 8192] [#]} (50. Kxh3 $11 {and White stays safe.} Qd8 51. Kg2) 50... Ra1 $2 {[%emt 0:01:37]} (50... hxg3+ 51. Rfxg3 Nxg3 52. Qe8+ Qg6 53. Qh8+ Qh6 54. Qe8+ Qg6 55. Qh8+ Qh6 56. Qe8+ Qg6 $11) (50... Rxe1 $1 $19 {[%mdl 512]} 51. Rxe1 hxg3+ 52. Kxh3 Rh4+ 53. Kg2 Qd8 54. Rxg3 Nxg3) 51. Kxh3 $11 {[%emt 0:00:17]} hxg3 {[%emt 0:01:45]} (51... Qa6 $5 {[%cal Rh4g3]} 52. Qd3 (52. gxh4 $2 Ra2 $19) 52... Qxd3 53. Rxd3 (53. exd3 Nxg3 54. Bf2 Ra2 $17) 53... Nxg3 $15) 52. Bxg3 {[%emt 0:00:24]} Rxa5 {[%emt 0:00:31]} 53. Kh2 {[%emt 0:00:53]} ({White should try} 53. Qc1 $11) 53... Ra2 $15 {[%emt 0:01:26]} 54. Bf2 {[%emt 0:00:25]} Qa6 {[%emt 0:01:46]} 55. Rh3+ {[%emt 0:00:29]} Kg6 $1 {[%emt 0:00:03]} 56. Rxg4+ $4 {[%emt 0:00:37][%mdl 8192]} (56. Rc1 $17 Rxe2 57. Rc6+ Qxc6 58. Qxe2) 56... fxg4 $19 {[%emt 0:00:02]} 57. f5+ {[%emt 0:00:18]} Kf7 $1 {[%emt 0:01:02]} (57... Kg7 58. Qf4 gxh3 59. Qc7+ Kf6 60. Qd8+ Kxf5 61. Qxd5+ Kf6 62. Qd8+ Ke6 63. Qe8+ Kd6 64. Qg6+ Kd5 65. Qf5+ Kd6 66. Qg6+ Kc7 67. Qf7+ Kd8 68. Bh4+ Kc8 69. Qe8+ Kc7 70. Qd8+ Kc6 71. Qe8+ Kd5 72. Qe5+ Kc4 73. Qxe4 $11) 58. Qb3 {[%emt 0:00:34]} gxh3 {[%emt 0:03:08]} 59. Qxd5+ {[%emt 0:00:03]} Kf8 $2 {[%emt 0:00:25]} ({Better is} 59... Kg7 $19 60. Qxe4 Qxe2 61. Qb7+ Kh6 62. Qb6+ Kg5 63. Qg6+ Kf4 64. Qd6+ Kf3 65. Qg3+ Ke4 66. Qe5+ Kd3 67. Qg3+ Kc4 68. Qg8+ Kb4 69. Qf8+ Kc3 70. Qc5+ Kb3 71. Qd5+ Kb2 72. Qb7+ Kc2 73. Qc7+ Kb1 74. Qb7+ Kc2 75. Qc6+ Kd2 76. Qh6+ Kd3 77. Qxh3+ Kc4 78. Qh4 Qxf2+ 79. Qxf2 Rxf2+ 80. Kg3 Rxf5 81. Kg4 Rf8 82. Kg3 Kxd4 83. Kg4 Ke5 84. Kg3 Ke4 85. Kg4 Rg8+ 86. Kh5 Kf4 87. Kh6 Kf5 88. Kh7 Rg6 89. Kh8 Ke6 90. Kh7 Kf7 91. Kh8 Rh6#) 60. Qd8+ $11 {[%emt 0:00:23]} Kf7 {[%emt 0:00:26]} 61. Qd5+ {[%emt 0:00:38]} Kg7 {[%emt 0:00:30]} (61... Kf8 $5 62. Qd8+ Kf7 63. Qd7+ Kg8 64. Qe8+ Kh7 65. Qe7+ Kh8 66. Qd8+ (66. Qxe4 Rxe2 67. Qf3 Qa2 $11) 66... Kh7 67. Qe7+ Kh8 68. Qd8+ (68. Qxe4 Rxe2 69. Qh4+ Kg7 $11) 68... Kh7 69. Qe7+ $11) 62. Qxe4 $4 {[%emt 0:01:03][%mdl 8192]} (62. Qd7+ $11 Kh6 63. Be3+ Ng5 64. Bxg5+ Kxg5 65. Qe7+ Kxf5 66. Qe5+ Kg6 67. Qe8+ Kf6 68. Qh8+ Kf5 69. Qe5+ Kg6 70. Qe8+ Kf6 71. Qd8+ Ke6 72. Qg8+ Kd6 73. Qg3+ Kd5 74. Qe5+ Kc4 75. Kxh3) 62... Qxe2 $19 {[%emt 0:00:07]} 63. Qb7+ {[%emt 0:00:09]} Kh6 $2 {[%emt 0:00:55]} (63... Kf6 $19 64. Qc6+ Kg5 65. Qg6+ Kf4 66. Qd6+ Ke4 67. Qe5+ Kd3 68. Qg3+ Kc4 69. Qg8+ (69. Qc7+ $2 Kb3 $19) 69... Kb4 70. Qb8+ Kc3 71. Qg3+ Kc4 72. Qg8+ (72. Qc7+ $2 Kb3 $19) 72... Kb4 73. Qf8+ Kb3 74. Qf7+ Kc3 75. Qc7+ Kb2 76. Qb7+ Kc2 77. Qc7+ Kd1) 64. Qc6+ $2 {[%emt 0:00:38][%mdl 8192]} (64. Qb6+ $11 Kg5 65. Qd8+ Kg4 66. Qg8+ Kf3 67. Qg3+ Ke4 68. Qh4+ (68. Qe5+ $2 Kd3 $19) 68... Kd3 69. Qg3+ Ke4 70. Qh4+ (70. Qe5+ $2 Kd3 $19) 70... Kd3 71. Qg3+ Kc4 72. Qg8+ (72. Qc7+ $2 Kb3 $19) 72... Kb4 73. Qf8+ Kc3 74. Kxh3 Qxf2 75. Qc5+ Kd3 76. Qb5+ Kxd4 77. Qd7+ Ke3 78. Qe6+ Kf4 79. Qc4+ Kxf5 80. Qd5+ Kf4 81. Qf7+ Ke5 82. Qe8+ Kf6 83. Qh8+ Kf7 84. Qh5+ Kf6 85. Qh8+ Kg6 86. Qg8+ Kf6 87. Qh8+) 64... Kg5 {[%emt 0:00:31]} 65. Qg6+ {[%emt 0:00:18]} Kf4 {[%emt 0:00:03]} 66. Qg3+ {[%emt 0:00:54]} Ke4 $1 {[%emt 0:00:59]} (66... Kxf5 67. Qxh3+ Qg4 68. Qxg4+ Kxg4 69. Kg2 $11) 67. Qe5+ {[%emt 0:00:17]} Kd3 {[%emt 0:00:06]} 68. Qg3+ {[%emt 0:00:13]} Kc4 {[%emt 0:00:15]} 69. Qc7+ {[%emt 0:01:03]} Kb3 {[%emt 0:00:11]} 70. Qb8+ {[%emt 0:00:26]} Kc2 {[%emt 0:00:20]} 71. Qg3 {[%emt 0:00:23]} Kb1 $2 {[%emt 0:00:33]} (71... Rb2 $1 $19 {[%cal Rb2b3]} 72. d5 Rb4) 72. Qg1+ $15 {[%emt 0:00:13]} Kb2 $1 {[%emt 0:00:11]} 73. Kxh3 {[%emt 0:00:24]} Ra3+ {[%emt 0:01:01]} ({Stronger than} 73... Qh5+ 74. Kg2 $17) 74. Bg3 $1 {[%emt 0:00:04]} Qh5+ {[%emt 0:00:27]} 75. Kg2 Qf3+ {[%emt 0:00:14]} ({Black should play} 75... Rc3 $1 $17 {( -> ...Qg4)} 76. Qf1 Rc2+ 77. Kg1 Rc1) 76. Kh2 $2 {[%emt 0:01:00][%mdl 8192]} (76. Kh3 $15) 76... Ra2 {[%emt 0:00:05]} 77. Qe1 {[%emt 0:00:57]} Kb3+ {[%emt 0:00:43]} 78. Kh3 {[%emt 0:00:05] [#]} Qh5+ $2 {[%emt 0:01:14]} (78... Re2 $1 $19 79. Qb1+ Rb2) 79. Bh4 $15 {[%emt 0:00:04]} Qxf5+ {[%emt 0:00:12]} 80. Kg3 {[%emt 0:00:04]} Qd3+ {[%emt 0:00:43]} 81. Kg4 {[%emt 0:01:01]} Qxd4+ {[%emt 0:00:44]} ({Not} 81... Rg2+ 82. Bg3 $17) 82. Kh3 $2 {[%emt 0:01:34][%mdl 8192]} (82. Kh5 $15) 82... Qd7+ {[%emt 0:00:08]} 83. Kg3 {[%emt 0:00:05]} Qd3+ {[%emt 0:00:39]} 84. Kf4 {[%emt 0:00:56] [#]} Ra4+ $1 {[%emt 0:00:10]} 85. Kg5 {[%emt 0:00:11]} Qd8+ {[%emt 0:00:09]} 86. Kh5 {[%emt 0:00:22]} Qh8+ {[%emt 0:00:09]} 87. Kg5 {[%emt 0:00:05]} Qg7+ {[%emt 0:00:16]} 88. Kf5 {[%emt 0:00:57]} Qg4+ {[%emt 0:00:06]} 89. Ke5 {[%emt 0:00:04]} Qd4+ {[%emt 0:01:05]} 90. Kf5 {[%emt 0:00:23]} Qf4+ {[%emt 0:01:19]} 91. Kg6 {[%emt 0:00:08]} Ra6+ {[%emt 0:01:29]} 92. Kg7 {[%emt 0:00:43]} Qh6+ {[%emt 0:00:05]} 93. Kf7 {[%emt 0:00:17]} Qh7+ {[%emt 0:00:07]} 94. Ke8 Ra8+ {[%emt 0:00:02]} 95. Bd8 {[%emt 0:00:18]} Qg8+ {[%emt 0:00:03]} 0-1

[Event "Swietokrzyskie GM Chess-ch 2022"]
[Site "Zagnansk"]
[Date "2022.05.04"]
[Round "7.3"]
[White "Tazbir, GM Marcin"]
[Black "Pacan-Milej, FM Kosma"]
[Result "1/2-1/2"]
[ECO "E62"]
[WhiteElo "2506"]
[BlackElo "2404"]
[Annotator "TA"]
[PlyCount "41"]
[EventDate "2022.04.29"]
[EventCountry "POL"]
[SourceTitle "playchess.com"]
[Source "ChessBase"]
[SourceQuality "1"]
[TimeControl "40/5400+30:1800+30"]

{[%evp 19,41,45,33,33,33,30,50,51,56,49,61,47,52,37,44,37,37,38,41,41,33,35,48,41]} 1. c4 {[%emt 0:00:02]} Nf6 {[%emt 0:00:14]} 2. Nf3 {[%emt 0:00:05]} g6 {[%emt 0:00:05]} 3. Nc3 {[%emt 0:00:27]} Bg7 {[%emt 0:00:27]} 4. d4 {[%emt 0:00:04]} O-O {[%emt 0:00:24]} 5. g3 {[%emt 0:00:10]} d6 {[%emt 0:00:19]} 6. Bg2 {[%emt 0:00:04]} Nc6 {[%emt 0:00:43]} 7. O-O {[%emt 0:00:11]} e5 {[%emt 0:00:07]} 8. dxe5 {[%emt 0:00:05]} dxe5 {[%emt 0:00:05]} 9. Bg5 {[%emt 0:00:08]} h6 {[%emt 0:07:01]} 10. Qxd8 {[%emt 0:00:49]} Rxd8 {[%emt 0:01:59]} 11. Bxf6 {[%emt 0:00:05] E62: King's Indian: Fianchetto: 6...c6 and Panno Variation (6...Nc6) without ...a6.} Bxf6 {[%emt 0:00:05][%cal Bg7f6,Bf6e7,Be7c5][%mdl 32]} 12. Nd5 {[%emt 0:00:03]} Kg7 {[%emt 0:00:15]} 13. Nxc7 {[%emt 0:00:05] White is slightly better.} Rb8 {[%emt 0:00:02]} 14. e4 {[%emt 0:00:06]} Be7 {[%emt 0:00:36]} 15. Nd5 {[%emt 0:01:24]} Bc5 {[%emt 0:00:06] [#]} 16. b3 $1 $146 {[%emt 0:01:32][%mdl 8] A relevant novelty.} ({Predecessor:} 16. Rfd1 Be6 17. b3 a5 18. Rd2 a4 19. bxa4 Ra8 20. Nc7 Rxd2 21. Nxd2 Rxa4 22. Nxe6+ fxe6 {½-½ (92) Giri,A (2780)-Dubov,D (2710) chess24.com INT 2021}) 16... a5 {[%emt 0:04:24]} 17. Rab1 {[%emt 0:00:33]} Be6 {[%emt 0:11:42]} 18. Rfd1 {[%emt 0:04:48]} Rbc8 {[%emt 0:15:45]} 19. Rd2 {[%emt 0:11:22]} f6 {[%emt 0:14:54]} 20. Rbd1 {[%emt 0:03:14]} Kf7 {[%emt 0:03:33]} 21. Bf1 {[%emt 0:02:23] Weighted Error Value: White=0.04 (flawless) /Black=0.04 (flawless)} 1/2-1/2

[Event "Swietokrzyskie GM Chess-ch 2022"]
[Site "Zagnansk"]
[Date "2022.05.04"]
[Round "7.4"]
[White "Chatalbashev, GM Boris"]
[Black "Mikrut, IM Dariusz"]
[Result "1-0"]
[ECO "E21"]
[WhiteElo "2539"]
[BlackElo "2361"]
[Annotator "TA"]
[PlyCount "122"]
[EventDate "2022.04.29"]
[EventCountry "POL"]
[SourceTitle "playchess.com"]
[Source "ChessBase"]
[SourceQuality "1"]
[TimeControl "40/5400+30:1800+30"]

{[%evp 21,122,12,15,0,0,0,2,0,0,0,12,0,0,0,0,0,0,0,14,7,2,0,0,0,13,13,14,15,63,18,52,39,43,15,62,65,72,82,132,112,89,101,176,34,45,0,0,0,42,16,21,20,88,82,81,90,81,88,111,73,134,91,91,88,93,91,173,93,93,95,92,0,76,83,176,209,171,47,39,37,80,67,59,24,339,334,331,316,300,282,274,253,345,345,345,337,481,463,1522,1004,973,554,29992]} 1. d4 {[%emt 0:00:02]} Nf6 {[%emt 0:00:08]} 2. Nf3 {[%emt 0:00:17]} e6 {[%emt 0:00:08]} 3. c4 {[%emt 0:00:10]} b6 {[%emt 0:00:07]} 4. Nc3 {[%emt 0:00:18]} Bb4 {[%emt 0:00:17]} 5. e3 {[%emt 0:00:06]} Bb7 {[%emt 0:01:48]} 6. Bd3 {[%emt 0:00:08]} O-O {[%emt 0:00:47]} 7. O-O {[%emt 0:00:07]} d5 {[%emt 0:00:16]} 8. cxd5 {[%emt 0:00:08]} exd5 {[%emt 0:00:16]} 9. a3 {[%emt 0:00:13]} Bd6 {[%emt 0:03:50]} 10. b4 {[%emt 0:02:00]} Nbd7 {[%emt 0:00:30]} 11. Qb3 {[%emt 0:00:54]} c6 {[%emt 0:03:19] was the old line (11...a6).} 12. a4 {[%emt 0:07:50] E52: Nimzo-Indian: Rubinstein: 4...0-0 5 Nf3 d5 6 Bd3 b6.} a5 {[%emt 0:01:50]} 13. bxa5 {[%emt 0:00:25]} Rxa5 {[%emt 0:01:12]} 14. Ba3 {[%emt 0:00:41] The position is equal.} Bxa3 {[%emt 0:05:39]} 15. Qxa3 {[%emt 0:01:28]} Re8 {[%emt 0:01:48] [#]} 16. Nd2 $146 {[%emt 0:04:21]} ({Predecessor:} 16. Rfb1 g6 17. h3 Ba6 18. Bxa6 Rxa6 19. Ne1 Qe7 20. Qxe7 Rxe7 21. Nd3 Ra5 22. g4 Re8 {½-½ (22) Korkus,M (2253)-Dziedzic,A (2182) ICCF email 2017}) 16... Ba6 {[%emt 0:02:10]} 17. Bxa6 {[%emt 0:00:54]} Rxa6 {[%emt 0:00:05]} 18. Rfc1 {[%emt 0:00:36]} Qb8 {[%emt 0:06:45]} 19. Rab1 {[%emt 0:01:51]} Ng4 {[%emt 0:03:47]} 20. Nf3 {[%emt 0:00:56]} Ngf6 {[%emt 0:12:00]} 21. h3 {[%emt 0:00:08]} h6 {[%emt 0:04:32]} 22. Rc2 {[%emt 0:03:19]} Re6 {[%emt 0:01:11]} 23. Qc1 {[%emt 0:02:46]} Qd6 {[%emt 0:07:13]} 24. Nd2 {[%emt 0:03:25]} g5 {[%emt 0:07:35]} (24... Re8 $11 {should be considered.}) 25. Nf3 {[%emt 0:05:48]} Ne8 {[%emt 0:01:12]} 26. Qf1 {[%emt 0:06:23]} Ra8 {[%emt 0:01:50]} 27. Qd3 {[%emt 0:00:16]} Qe7 {[%emt 0:01:16]} (27... Nef6 $11) 28. Ne5 $14 {[%emt 0:03:50]} Nxe5 {[%emt 0:10:31]} 29. dxe5 {[%emt 0:01:18]} Qd8 {[%emt 0:01:47]} (29... Rxe5 $142 30. Rxb6 Qc7) 30. f4 {[%emt 0:05:47] White is more active.} Ng7 {[%emt 0:03:12]} 31. Rcb2 {[%emt 0:07:26]} Rb8 {[%emt 0:02:54] [#]} (31... f6 $16) 32. Kh1 {[%emt 0:02:07]} (32. Ne2 $1 $18 {[%cal Re2d4]}) 32... f6 {[%emt 0:00:27]} 33. exf6 {[%emt 0:01:24]} (33. Qg6 $2 f5 34. Qxe6+ Nxe6 $19) 33... Qxf6 {[%emt 0:01:31]} 34. Rxb6 {[%emt 0:04:20]} Rbe8 {[%emt 0:00:05]} 35. fxg5 {[%emt 0:09:13]} Qxg5 {[%emt 0:00:09]} 36. e4 {[%emt 0:06:42] next Rb8 is good for White.} (36. Rb7 $2 Rxe3 37. Qd4 Nf5 $19) 36... dxe4 {[%emt 0:00:40]} (36... Rg6 $1 $11 37. Qf3 (37. g4 h5 $11) 37... Rf8) 37. Qc4 $16 {[%emt 0:00:06][%csl LRc6,LRe4]} Kh7 {[%emt 0:03:26]} 38. Rxc6 {[%emt 0:00:40]} Rxc6 {[%emt 0:01:36]} 39. Qxc6 {[%emt 0:00:04]} Qf5 {[%emt 0:01:59]} 40. Qb5 {[%emt 0:00:00]} (40. Rb6 $2 Qf1+ 41. Kh2 Qf4+ 42. Kh1 Re6 $19) 40... Re5 {[%emt 0:00:00]} (40... e3 $142) 41. Qc4 {[%emt 0:24:48]} (41. Qb7 e3 $14) 41... e3 {[%emt 0:24:10][%cal Of5b1]} 42. Rb8 {[%emt 0:04:02]} Re6 {[%emt 0:00:48]} (42... e2 $2 43. Qg8+ (43. Nxe2 Qf1+ 44. Kh2 Qxe2 $11) 43... Kg6 44. Rb6+ Re6 45. Rxe6+ Qxe6 46. Qxe6+ Nxe6 47. Nxe2 $18) 43. Ne2 {[%emt 0:02:04]} Qe5 {[%emt 0:00:48]} (43... Qe4 $16 44. Qa2 (44. Qc8 Re8 $14) 44... Qd3) 44. Qd3+ {[%emt 0:08:01]} (44. Qc8 $6 Qa1+ 45. Kh2 Qe5+ 46. g3 Rf6 $14) (44. Rf8 $18) 44... Qe4 {[%emt 0:00:09]} 45. Qb3 {[%emt 0:00:12]} Qf5 {[%emt 0:01:53] Prevents Rf8.} 46. Qc4 {[%emt 0:03:32]} ({But not} 46. Rb7 $6 Qf1+ 47. Kh2 Rg6 48. Rxg7+ Rxg7 49. Qc2+ Rg6 50. Qc7+ Rg7 51. Qc2+ Kh8 52. Qc8+ Rg8 53. Qc3+ (53. Qc6 Kh7 $11) 53... Kh7 54. Qc7+ Rg7 55. Qc2+ $11) (46. Kh2 $16) 46... Qe4 {[%emt 0:02:06]} (46... Qe5 $1 $11 {keeps the balance.} 47. Rf8 (47. Qc8 Qa1+ 48. Kh2 Qe5+ 49. g3 Rf6 $16) 47... h5 48. Qc2+ Qe4) 47. Qa2 $36 {[%emt 0:03:24][%mdl 2048] White is in control.} Qf5 {[%emt 0:01:38] Prevents Rf8.} (47... Qd3 $16 48. Rc8 h5) 48. a5 $18 {[%emt 0:03:30] Threatens to win with a6.} Qd3 {[%emt 0:03:07]} 49. Rb6 {[%emt 0:02:52]} (49. Rb3 $18 Qd1+ 50. Kh2) 49... Qd1+ $14 {[%emt 0:02:02]} 50. Ng1 {[%emt 0:00:01]} Re5 {[%emt 0:02:24] Hoping for ...e2.} 51. Qf7 {[%emt 0:01:13] White wants to mate with Rg6.} Qh5 {[%emt 0:01:50] Inhibits Rg6.} 52. Qf1 {[%emt 0:02:28] g4 is the strong threat.} (52. Qf4 $5 {[%cal Rb6h6]} Re8 53. Qb4 $14) 52... Rxa5 $2 {[%emt 0:01:31][%mdl 8192] This costs Black the game.} (52... e2 $11 53. Qe1 Rxa5) 53. Qd3+ $18 {[%emt 0:00:26]} Qf5 {[%emt 0:01:37]} 54. Qxe3 {[%emt 0:00:02]} Qg5 {[%emt 0:00:18]} 55. Qd3+ {[%emt 0:00:41]} Qf5 {[%emt 0:01:01] [#]} 56. Qd6 {[%emt 0:00:21]} Qh5 {[%emt 0:00:55]} 57. Nf3 {[%emt 0:00:25] Against Re5. Strongly threatening Rb7.} Rd5 {[%emt 0:00:49]} 58. Qf4 {[%emt 0:00:29]} Rf5 {[%emt 0:01:22]} (58... Rd7 $142 59. h4 Re7) 59. Qe4 {[%emt 0:00:43] Black must now prevent Nd4. White is clearly winning.} Qe8 {[%emt 0:00:17]} (59... Kg8 $142 60. Qe3 Rf7 61. Rxh6 Qf5) 60. Qb1 {[%emt 0:00:14] And now Rb7 would win.} Qe3 {[%emt 0:01:21]} 61. Nh4 {[%emt 0:01:09] Threatening mate with Rb7.} Qe2 {[%emt 0:00:30] Weighted Error Value: White=0.20 (precise) /Black=0.33} 1-0